fUST/lending_fUST_20241227
["ID","MTS","AMOUNT","RATE_DAILY","PERIOD"]
[346797105,1735295438613,-500.0,9.279e-05,2]
[346797106,1735295438622,-500.0,9.279e-05,2]
[346797107,1735295438631,-500.0,9.279e-05,2]
[346797108,1735295438641,-500.0,9.279e-05,2]
[346797109,1735295438651,-500.0,9.279e-05,2]
[346797110,1735295438660,-500.0,9.279e-05,2]
[346797111,1735295438670,-500.0,9.279e-05,2]
[346797112,1735295438679,-500.0,9.279e-05,2]
[346797113,1735295438689,-500.0,9.279e-05,2]
[346797114,1735295438699,-500.0,9.279e-05,2]
[346797115,1735295438708,-151.0,9.279e-05,2]
[346797116,1735295438718,-151.0,9.279e-05,2]
[346797117,1735295438728,-151.0,9.279e-05,2]
[346797118,1735295438737,-500.0,9.279e-05,2]
[346797119,1735295438747,-746.83,9.279e-05,2]
[346797120,1735295438757,-500.0,9.279e-05,2]
[346797121,1735295438767,-500.0,9.279e-05,2]
[346797122,1735295438777,-500.0,9.279e-05,2]
[346797123,1735295438786,-500.0,9.279e-05,2]
[346797124,1735295438796,-500.0,9.279e-05,2]
[346797125,1735295438806,-500.0,9.279e-05,2]
[346797126,1735295438816,-495.96777724,9.279e-05,2]
[346797127,1735295438825,-500.0,9.279e-05,2]
[346797128,1735295438834,-8570.86,9.279e-05,2]
[346797129,1735295438844,-500.0,9.279e-05,2]
[346797130,1735295438854,-500.0,9.366e-05,2]
[346797131,1735295438864,-500.0,9.366e-05,2]
[346797132,1735295438873,-500.0,9.366e-05,2]
[346797133,1735295438889,-500.0,9.366e-05,2]
[346797134,1735295438899,-502.26207829,9.367e-05,2]
[346797135,1735295438908,-558.98150944,9.367e-05,2]
[346797136,1735295438918,-502.99110824,9.367e-05,2]
[346797137,1735295438927,-243.19393435,9.367e-05,2]
[346797138,1735295438937,-502.52890815,9.367e-05,2]
[346797139,1735295438947,-501.75659356,9.367e-05,2]
[346797140,1735295438956,-500.0,9.367e-05,2]
[346797141,1735295438966,-501.99608213,9.367e-05,2]
[346797142,1735295438976,-500.0,9.367e-05,2]
[346797143,1735295438985,-500.0,9.367e-05,2]
[346797144,1735295438994,-500.0,9.367e-05,2]
[346797145,1735295439004,-500.0,9.367e-05,2]
[346797146,1735295439015,-154.57146418,9.367e-05,2]
[346797147,1735295439025,-500.0,9.367e-05,2]
[346797148,1735295439036,-500.0,9.367e-05,2]
[346797149,1735295439048,-500.0,9.367e-05,2]
[346797150,1735295439058,-500.0,9.367e-05,2]
[346797151,1735295439068,-500.0,9.367e-05,2]
[346797152,1735295439079,-500.0,9.367e-05,2]
[346797153,1735295439088,-500.0,9.367e-05,2]
[346797154,1735295439098,-500.0,9.367e-05,2]
[346797155,1735295439110,-500.0,9.367e-05,2]
[346797156,1735295439122,-500.0,9.367e-05,2]
[346797157,1735295439132,-500.0,9.367e-05,2]
[346797158,1735295439142,-500.0,9.367e-05,2]
[346797159,1735295439153,-500.0,9.367e-05,2]
[346797160,1735295439163,-500.0,9.367e-05,2]
[346797161,1735295439172,-426.63173573,9.367e-05,2]
[346797162,1735295439183,-500.0,9.367e-05,2]
[346797163,1735295439192,-158.44,9.367e-05,2]
[346797164,1735295439203,-500.0,9.367e-05,2]
[346797165,1735295439212,-500.0,9.367e-05,2]
[346797166,1735295439222,-501.37884012,9.367e-05,2]
[346797168,1735295439232,-500.0,9.367e-05,2]
[346797170,1735295439241,-500.0,9.367e-05,2]
[346797172,1735295439251,-151.0,9.367e-05,2]
[346797174,1735295439261,-151.0,9.367e-05,2]
[346797176,1735295439271,-152.506018,9.367e-05,2]
[346797178,1735295439281,-500.0,9.367e-05,2]
[346797180,1735295439293,-500.0,9.367e-05,2]
[346797182,1735295439303,-500.0,9.367e-05,2]
[346797184,1735295439313,-300.0,9.368e-05,2]
[346797186,1735295439322,-500.0,9.368e-05,2]
[346797188,1735295439332,-3521.3,9.368e-05,2]
[346797190,1735295439342,-500.0,9.368e-05,2]
[346797192,1735295439351,-3556.36,9.37e-05,2]
[346797194,1735295439361,-165.65,9.541e-05,2]
[346797196,1735295439371,-666.0,9.541e-05,2]
[346797198,1735295439381,-500.0,9.548e-05,2]
[346797200,1735295439390,-1170.0,9.548e-05,2]
[346797202,1735295439400,-500.0,9.548e-05,2]
[346797204,1735295439410,-814.6,9.548e-05,2]
[346797206,1735295439420,-500.0,9.549e-05,2]
[346797208,1735295439430,-500.0,9.549e-05,2]
[346797210,1735295439440,-500.0,9.549e-05,2]
[346797212,1735295439450,-4800.99,9.549e-05,2]
[346797214,1735295439462,-1619.65,9.549e-05,2]
[346797216,1735295439473,-909.34,9.549e-05,2]
[346797218,1735295439484,-582.61,9.549e-05,2]
[346797221,1735295439494,-500.0,9.549e-05,2]
[346797223,1735295439505,-500.0,9.549e-05,2]
[346797226,1735295439515,-500.0,9.55e-05,2]
[346797228,1735295439524,-500.0,9.55e-05,2]
[346797242,1735295439676,-500.0,9.55e-05,2]
[346797243,1735295439687,-500.0,9.55e-05,2]
[346797244,1735295439696,-678.03,9.55e-05,2]
[346797245,1735295439706,-500.0,9.55e-05,2]
[346797246,1735295439715,-500.0,9.55e-05,2]
[346797247,1735295439725,-500.0,9.55e-05,2]
[346797248,1735295439735,-500.0,9.55e-05,2]
[346797249,1735295439744,-344.95587899,9.55e-05,2]
[346797250,1735295439754,-500.0,9.55e-05,2]
[346797251,1735295439764,-500.0,9.55e-05,2]
[346797253,1735295439773,-349.826333,9.55e-05,2]
[346797255,1735295439783,-500.0,9.55e-05,2]
[346797257,1735295439794,-922.85,9.55e-05,2]
[346797259,1735295439805,-500.0,9.55e-05,2]
[346797261,1735295439815,-500.0,9.55e-05,2]
[346797262,1735295439824,-500.0,9.55e-05,2]
[346797263,1735295439834,-500.0,9.55e-05,2]
[346797264,1735295439844,-698.89,9.55e-05,2]
[346797265,1735295439853,-500.0,9.55e-05,2]
[346797266,1735295439863,-500.0,9.55e-05,2]
[346797267,1735295439873,-657.69,9.55e-05,2]
[346797268,1735295439883,-500.0,9.55e-05,2]
[346797269,1735295439892,-656.78,9.55e-05,2]
[346797270,1735295439902,-500.0,9.55e-05,2]
[346797271,1735295439912,-500.0,9.55e-05,2]
[346797272,1735295439922,-500.0,9.55e-05,2]
[346797273,1735295439932,-503.93159853,9.55e-05,2]
[346797274,1735295439941,-500.0,9.55e-05,2]
[346797275,1735295439951,-500.0,9.55e-05,2]
[346797276,1735295439960,-500.0,9.55e-05,2]
[346797277,1735295439970,-500.0,9.55e-05,2]
[346797278,1735295439980,-322.95692032,9.55e-05,2]
[346797279,1735295439989,-608.91,9.55e-05,2]
[346797280,1735295439998,-500.0,9.55e-05,2]
[346797281,1735295440009,-500.0,9.55e-05,2]
[346797282,1735295440019,-500.0,9.55e-05,2]
[346797283,1735295440028,-275.25766714,9.55e-05,2]
[346797284,1735295440042,-500.0,9.55e-05,2]
[346797285,1735295440054,-500.0,9.55e-05,2]
[346797286,1735295440064,-500.0,9.55e-05,2]
[346797287,1735295440077,-500.0,9.55e-05,2]
[346797288,1735295440087,-500.0,9.55e-05,2]
[346797289,1735295440097,-500.0,9.552e-05,2]
[346797290,1735295440106,-500.0,9.552e-05,2]
[346797291,1735295440117,-500.0,9.552e-05,2]
[346797292,1735295440127,-500.0,9.552e-05,2]
[346797293,1735295440136,-634.15441464,9.552e-05,2]
[346797294,1735295440146,-500.0,9.552e-05,2]
[346797295,1735295440156,-500.0,9.552e-05,2]
[346797296,1735295440166,-500.0,9.552e-05,2]
[346797297,1735295440176,-500.0,9.552e-05,2]
[346797298,1735295440186,-500.0,9.552e-05,2]
[346797299,1735295440195,-500.0,9.552e-05,2]
[346797300,1735295440205,-500.0,9.552e-05,2]
[346797301,1735295440214,-500.0,9.552e-05,2]
[346797302,1735295440224,-372.07816185,9.552e-05,2]
[346797303,1735295440234,-211.60607973,9.552e-05,2]
[346797304,1735295440248,-288.39392027,9.552e-05,2]
[346797305,1735295440257,-333.6177523,9.552e-05,2]
[346797306,1735295440357,-166.3822477,9.552e-05,2]
[346797307,1735295440367,-429.48,9.552e-05,2]
[346797308,1735295440377,-507.70607115,9.552e-05,2]
[346797309,1735295440388,-500.0,9.552e-05,2]
[346797310,1735295440398,-500.0,9.552e-05,2]
[346797311,1735295440407,-500.0,9.552e-05,2]
[346797312,1735295440417,-500.0,9.552e-05,2]
[346797313,1735295440428,-500.0,9.552e-05,2]
[346797314,1735295440437,-500.0,9.552e-05,2]
[346797315,1735295440447,-500.0,9.552e-05,2]
[346797316,1735295440456,-500.0,9.552e-05,2]
[346797317,1735295440466,-500.0,9.552e-05,2]
[346797318,1735295440476,-502.63432569,9.552e-05,2]
[346797319,1735295440486,-569.64932504,9.552e-05,2]
[346797320,1735295440495,-500.0,9.552e-05,2]
[346797321,1735295440505,-155.55571195,9.552e-05,2]
[346797322,1735295440652,-500.0,9.274e-05,2]
[346797323,1735295440662,-500.0,9.275e-05,2]
[346797324,1735295440672,-455.86428805,9.552e-05,2]
[346797325,1735295440682,-500.0,9.552e-05,2]
[346797326,1735295440691,-500.0,9.552e-05,2]
[346797327,1735295440701,-501.2667194,9.552e-05,2]
[346797328,1735295440710,-500.0,9.552e-05,2]
[346797329,1735295440720,-245.55,9.552e-05,2]
[346797330,1735295440730,-500.0,9.552e-05,2]
[346797331,1735295440739,-500.0,9.552e-05,2]
[346797332,1735295440749,-500.0,9.552e-05,2]
[346797333,1735295440758,-500.0,9.552e-05,2]
[346797334,1735295440767,-500.0,9.552e-05,2]
[346797335,1735295440777,-500.0,9.552e-05,2]
[346797336,1735295440786,-595.97,9.552e-05,2]
[346797337,1735295440799,-500.0,9.552e-05,2]
[346797338,1735295440808,-574.79365769,9.552e-05,2]
[346797339,1735295440818,-298.4729975,9.552e-05,2]
[346797340,1735295440827,-500.0,9.552e-05,2]
[346797341,1735295440836,-500.0,9.552e-05,2]
[346797342,1735295440846,-500.0,9.552e-05,2]
[346797343,1735295440856,-502.83494229,9.552e-05,2]
[346797344,1735295440865,-502.92569083,9.552e-05,2]
[346797345,1735295440875,-500.0,9.552e-05,2]
[346797346,1735295440884,-500.0,9.552e-05,2]
[346797347,1735295440894,-500.0,9.552e-05,2]
[346797348,1735295440903,-500.0,9.552e-05,2]
[346797349,1735295440912,-501.79047327,9.552e-05,2]
[346797350,1735295440922,-503.49734865,9.552e-05,2]
[346797351,1735295440931,-500.0,9.552e-05,2]
[346797352,1735295440940,-429.44370508,9.552e-05,2]
[346797353,1735295440950,-500.0,9.552e-05,2]
[346797354,1735295440959,-500.0,9.552e-05,2]
[346797355,1735295440969,-500.0,9.552e-05,2]
[346797356,1735295440978,-500.0,9.552e-05,2]
[346797357,1735295440987,-500.0,9.552e-05,2]
[346797358,1735295440997,-500.0,9.552e-05,2]
[346797359,1735295441007,-504.35973396,9.552e-05,2]
[346797360,1735295441016,-513.8895671,9.552e-05,2]
[346797361,1735295441026,-502.29813148,9.552e-05,2]
[346797362,1735295441037,-2.7286214,9.552e-05,2]
[346797390,1735295443875,-497.2713786,9.552e-05,2]
[346797391,1735295443884,-500.0,9.552e-05,2]
[346797392,1735295443894,-271.85623693,9.552e-05,2]
[346797393,1735295443903,-500.0,9.552e-05,2]
[346797394,1735295443913,-500.0,9.552e-05,2]
[346797395,1735295443922,-2938.2831272,9.552e-05,2]
[346797409,1735295677486,500.0,0.0002036,120]
[346797410,1735295690057,592.282,8.979e-05,2]
[346797411,1735295697929,592.282,8.979e-05,2]
[346797412,1735295706627,592.282,8.979e-05,2]
[346797413,1735295714843,592.282,8.979e-05,2]
[346797414,1735295722975,592.282,8.979e-05,2]
[346797415,1735295731452,315.436,8.979e-05,2]
[346797416,1735295889271,536.984179,8.979e-05,2]
[346797417,1735296009367,483.5317,8.979e-05,2]
[346797419,1735296028506,196.18729161,8.97e-05,2]
[346797420,1735296100513,257.345,8.979e-05,2]
[346797421,1735296318337,1842.0,0.00023,120]
[346797423,1735296451122,-400.38864665,9.07e-05,2]
[346797424,1735296468845,24900.0,8.272e-05,2]
[346797425,1735296537906,-191.89335335,9.07e-05,2]
[346797426,1735296537932,-300.0,9.268e-05,2]
[346797427,1735296537957,-500.0,9.268e-05,2]
[346797428,1735296537982,-337.50257206,9.268e-05,2]
[346797429,1735296538021,-162.49742794,9.268e-05,2]
[346797430,1735296538044,-511.43927647,9.268e-05,2]
[346797431,1735296538069,-375.99374178,9.268e-05,2]
[346797432,1735296562780,-300.0,9.267e-05,2]
[346797433,1735296562806,-500.0,9.268e-05,2]
[346797434,1735296562832,-124.00625822,9.268e-05,2]
[346797435,1735296562856,-452.97619462,9.268e-05,2]
[346797436,1735296562894,-167.67621168,9.268e-05,2]
[346797437,1735296562922,-500.0,9.268e-05,2]
[346797438,1735296562948,-287.10097066,9.268e-05,2]
[346797439,1735296587778,-212.89902934,9.268e-05,2]
[346797440,1735296587806,-500.0,9.268e-05,2]
[346797441,1735296587832,-500.0,9.268e-05,2]
[346797442,1735296587860,-210.7186162,9.268e-05,2]
[346797443,1735296587893,-289.2813838,9.268e-05,2]
[346797444,1735296587920,-500.0,9.268e-05,2]
[346797445,1735296587953,-126.62766678,9.268e-05,2]
[346797488,1735296632090,-300.0,9.267e-05,2]
[346797490,1735296632099,-174.36929675,9.268e-05,2]
[346797492,1735296632110,-1308.84,9.268e-05,2]
[346797494,1735296632119,-500.0,9.268e-05,2]
[346797496,1735296632128,-500.0,9.27e-05,2]
[346797498,1735296632138,-500.0,9.27e-05,2]
[346797500,1735296632147,-500.0,9.27e-05,2]
[346797502,1735296632156,-500.0,9.27e-05,2]
[346797504,1735296632166,-500.0,9.27e-05,2]
[346797505,1735296632175,-301.79020325,9.27e-05,2]
[346797528,1735296637971,-500.0,9.267e-05,2]
[346797529,1735296637981,-500.0,9.267e-05,2]
[346797530,1735296637990,-500.0,9.267e-05,2]
[346797531,1735296638000,-222.3396068,9.267e-05,2]
[346797533,1735296638011,-277.6603932,9.267e-05,2]
[346797535,1735296638021,-500.0,9.267e-05,2]
[346797537,1735296638031,-500.0,9.267e-05,2]
[346797538,1735296638041,-500.0,9.267e-05,2]
[346797540,1735296638050,-500.0,9.267e-05,2]
[346797542,1735296638060,-442.64369381,9.267e-05,2]
[346797543,1735296638069,-500.0,9.267e-05,2]
[346797545,1735296638079,-500.0,9.267e-05,2]
[346797546,1735296638091,-500.0,9.267e-05,2]
[346797548,1735296638100,-500.0,9.267e-05,2]
[346797549,1735296638110,-555.2517167,9.267e-05,2]
[346797550,1735296638120,-500.0,9.267e-05,2]
[346797551,1735296638129,-608.73348112,9.267e-05,2]
[346797552,1735296638139,-500.0,9.267e-05,2]
[346797553,1735296638148,-500.0,9.267e-05,2]
[346797554,1735296638158,-361.85835664,9.267e-05,2]
[346797555,1735296638168,-500.0,9.267e-05,2]
[346797556,1735296638177,-500.0,9.267e-05,2]
[346797557,1735296638186,-500.0,9.267e-05,2]
[346797558,1735296638196,-500.0,9.267e-05,2]
[346797559,1735296638206,-500.0,9.267e-05,2]
[346797560,1735296638215,-500.0,9.267e-05,2]
[346797561,1735296638224,-500.0,9.267e-05,2]
[346797562,1735296638234,-500.0,9.267e-05,2]
[346797563,1735296638243,-500.0,9.267e-05,2]
[346797564,1735296638252,-500.0,9.267e-05,2]
[346797565,1735296638262,-500.0,9.267e-05,2]
[346797566,1735296638272,-500.0,9.267e-05,2]
[346797567,1735296638281,-500.0,9.267e-05,2]
[346797568,1735296638290,-500.0,9.267e-05,2]
[346797569,1735296638299,-500.0,9.267e-05,2]
[346797570,1735296638308,-500.0,9.267e-05,2]
[346797571,1735296638318,-500.0,9.267e-05,2]
[346797572,1735296638327,-500.0,9.267e-05,2]
[346797573,1735296638336,-500.0,9.267e-05,2]
[346797574,1735296638356,-500.0,9.267e-05,2]
[346797575,1735296638366,-500.0,9.267e-05,2]
[346797576,1735296638376,-500.0,9.267e-05,2]
[346797577,1735296638385,-500.0,9.267e-05,2]
[346797578,1735296638395,-500.0,9.267e-05,2]
[346797579,1735296638405,-500.0,9.267e-05,2]
[346797580,1735296638415,-500.0,9.267e-05,2]
[346797581,1735296638428,-500.0,9.267e-05,2]
[346797582,1735296638438,-500.0,9.267e-05,2]
[346797583,1735296638449,-500.0,9.267e-05,2]
[346797584,1735296638459,-500.0,9.267e-05,2]
[346797585,1735296638469,-500.0,9.267e-05,2]
[346797586,1735296638480,-500.0,9.267e-05,2]
[346797587,1735296638490,-500.0,9.267e-05,2]
[346797588,1735296638502,-500.0,9.267e-05,2]
[346797589,1735296638511,-500.0,9.267e-05,2]
[346797590,1735296638521,-500.0,9.267e-05,2]
[346797591,1735296638530,-500.0,9.267e-05,2]
[346797592,1735296638540,-500.0,9.267e-05,2]
[346797593,1735296638549,-500.0,9.267e-05,2]
[346797594,1735296638559,-500.0,9.267e-05,2]
[346797595,1735296638568,-500.0,9.267e-05,2]
[346797596,1735296638578,-500.0,9.267e-05,2]
[346797597,1735296638589,-500.0,9.267e-05,2]
[346797598,1735296638599,-500.0,9.267e-05,2]
[346797599,1735296638608,-500.0,9.267e-05,2]
[346797600,1735296638618,-500.0,9.267e-05,2]
[346797601,1735296638628,-500.0,9.267e-05,2]
[346797602,1735296638638,-500.0,9.267e-05,2]
[346797603,1735296638648,-500.0,9.267e-05,2]
[346797604,1735296638658,-500.0,9.267e-05,2]
[346797605,1735296638668,-500.0,9.267e-05,2]
[346797606,1735296638678,-500.0,9.267e-05,2]
[346797607,1735296638687,-500.0,9.267e-05,2]
[346797608,1735296638697,-500.0,9.268e-05,2]
[346797609,1735296638707,-198.20979675,9.27e-05,2]
[346797610,1735296638717,-565.65984112,9.27e-05,2]
[346797611,1735296638727,-500.0,9.27e-05,2]
[346797612,1735296638736,-500.0,9.27e-05,2]
[346797613,1735296638746,-500.0,9.27e-05,2]
[346797614,1735296638756,-500.0,9.27e-05,2]
[346797615,1735296638766,-500.0,9.27e-05,2]
[346797616,1735296638776,-500.0,9.27e-05,2]
[346797617,1735296638786,-500.0,9.27e-05,2]
[346797618,1735296638796,-500.0,9.27e-05,2]
[346797619,1735296638805,-500.0,9.27e-05,2]
[346797620,1735296638815,-167.62,9.27e-05,2]
[346797621,1735296638824,-5594.41,9.27e-05,2]
[346797622,1735296638834,-359.52415553,9.27e-05,2]
[346797623,1735296638843,-500.0,9.27e-05,2]
[346797624,1735296638853,-1852.59,9.27e-05,2]
[346797625,1735296638862,-500.0,9.27e-05,2]
[346797626,1735296638872,-594.31163122,9.27e-05,2]
[346797627,1735296638881,-500.0,9.27e-05,2]
[346797628,1735296638891,-500.0,9.27e-05,2]
[346797629,1735296638901,-500.0,9.27e-05,2]
[346797630,1735296638910,-500.0,9.27e-05,2]
[346797631,1735296638920,-500.0,9.27e-05,2]
[346797632,1735296638930,-500.0,9.27e-05,2]
[346797633,1735296638939,-1027.56,9.27e-05,2]
[346797634,1735296638949,-500.0,9.27e-05,2]
[346797635,1735296638959,-617.51,9.27e-05,2]
[346797636,1735296638969,-500.0,9.27e-05,2]
[346797637,1735296638978,-500.0,9.27e-05,2]
[346797638,1735296638989,-500.0,9.27e-05,2]
[346797639,1735296638998,-2559.51352498,9.272e-05,2]
[346797640,1735296639008,-500.0,9.272e-05,2]
[346797641,1735296639018,-500.0,9.272e-05,2]
[346797642,1735296639027,-500.0,9.272e-05,2]
[346797643,1735296639037,-500.0,9.272e-05,2]
[346797644,1735296639046,-501.9639455,9.272e-05,2]
[346797645,1735296639056,-500.0,9.272e-05,2]
[346797646,1735296639065,-500.0,9.272e-05,2]
[346797647,1735296639074,-500.0,9.272e-05,2]
[346797648,1735296639083,-500.0,9.272e-05,2]
[346797649,1735296639093,-500.0,9.272e-05,2]
[346797650,1735296639102,-500.0,9.272e-05,2]
[346797651,1735296639112,-663.2,9.272e-05,2]
[346797652,1735296639121,-500.0,9.272e-05,2]
[346797653,1735296639131,-500.0,9.272e-05,2]
[346797654,1735296639141,-500.0,9.272e-05,2]
[346797655,1735296639151,-500.0,9.272e-05,2]
[346797656,1735296639162,-591.57,9.272e-05,2]
[346797657,1735296639171,-500.0,9.272e-05,2]
[346797658,1735296639184,-500.0,9.272e-05,2]
[346797659,1735296639193,-500.0,9.272e-05,2]
[346797660,1735296639202,-500.0,9.272e-05,2]
[346797661,1735296639211,-500.0,9.272e-05,2]
[346797662,1735296639221,-500.0,9.272e-05,2]
[346797663,1735296639231,-500.0,9.272e-05,2]
[346797664,1735296639240,-500.0,9.272e-05,2]
[346797665,1735296639249,-500.0,9.272e-05,2]
[346797666,1735296639259,-500.0,9.272e-05,2]
[346797667,1735296639269,-500.0,9.272e-05,2]
[346797668,1735296639280,-500.0,9.272e-05,2]
[346797669,1735296639290,-500.0,9.272e-05,2]
[346797670,1735296639300,-564.17,9.272e-05,2]
[346797671,1735296639309,-500.0,9.272e-05,2]
[346797672,1735296639319,-632.38420102,9.272e-05,2]
[346797673,1735296639328,-967.89,9.272e-05,2]
[346797674,1735296639339,-500.0,9.272e-05,2]
[346797675,1735296639349,-614.91,9.272e-05,2]
[346797676,1735296639358,-500.0,9.272e-05,2]
[346797677,1735296639367,-500.0,9.272e-05,2]
[346797678,1735296639377,-500.0,9.272e-05,2]
[346797679,1735296639386,-500.0,9.272e-05,2]
[346797680,1735296639395,-500.0,9.272e-05,2]
[346797681,1735296639405,-500.0,9.272e-05,2]
[346797682,1735296639414,-500.0,9.272e-05,2]
[346797683,1735296639426,-66.16155706,9.272e-05,2]
[346797684,1735296639442,-433.83844294,9.272e-05,2]
[346797685,1735296639452,-587.63,9.272e-05,2]
[346797686,1735296639462,-500.0,9.272e-05,2]
[346797687,1735296639473,-799.24,9.272e-05,2]
[346797688,1735296639483,-500.0,9.272e-05,2]
[346797689,1735296639494,-725.72,9.272e-05,2]
[346797690,1735296639505,-702.3,9.272e-05,2]
[346797691,1735296639514,-500.0,9.272e-05,2]
[346797692,1735296639523,-500.0,9.272e-05,2]
[346797693,1735296639533,-500.0,9.272e-05,2]
[346797694,1735296639543,-500.0,9.272e-05,2]
[346797695,1735296639552,-500.0,9.272e-05,2]
[346797696,1735296639561,-500.0,9.272e-05,2]
[346797697,1735296639571,-500.0,9.272e-05,2]
[346797698,1735296639580,-500.0,9.272e-05,2]
[346797699,1735296639591,-500.0,9.272e-05,2]
[346797700,1735296639600,-646.28,9.272e-05,2]
[346797701,1735296639611,-500.0,9.272e-05,2]
[346797702,1735296639621,-500.0,9.272e-05,2]
[346797703,1735296639631,-500.0,9.272e-05,2]
[346797704,1735296639641,-498.53736408,9.272e-05,2]
[346797706,1735296639652,-500.0,9.272e-05,2]
[346797707,1735296639662,-500.0,9.272e-05,2]
[346797708,1735296639671,-505.31810475,9.272e-05,2]
[346797709,1735296639681,-500.0,9.272e-05,2]
[346797711,1735296639690,-500.0,9.272e-05,2]
[346797713,1735296639699,-500.0,9.272e-05,2]
[346797715,1735296639711,-500.0,9.272e-05,2]
[346797717,1735296639721,-500.0,9.272e-05,2]
[346797719,1735296639731,-254.65767305,9.273e-05,2]
[346797720,1735296639740,-500.0,9.273e-05,2]
[346797721,1735296639750,-500.0,9.273e-05,2]
[346797722,1735296639760,-500.0,9.273e-05,2]
[346797724,1735296639769,-500.0,9.273e-05,2]
[346797725,1735296639779,-16738.62,9.273e-05,2]
[346797727,1735296639788,-500.0,9.273e-05,2]
[346797729,1735296639798,-151.0,9.273e-05,2]
[346797731,1735296639808,-511.73,9.274e-05,2]
[346797733,1735296639817,-451.69260104,9.274e-05,2]
[346797735,1735296639827,-500.0,9.274e-05,2]
[346797737,1735296639837,-500.0,9.274e-05,2]
[346797739,1735296639847,-500.0,9.274e-05,2]
[346797741,1735296639856,-500.0,9.274e-05,2]
[346797743,1735296639866,-500.0,9.274e-05,2]
[346797745,1735296639875,-500.0,9.274e-05,2]
[346797747,1735296639885,-500.0,9.274e-05,2]
[346797749,1735296639894,-166.08358464,9.274e-05,2]
[346797751,1735296639904,-500.0,9.274e-05,2]
[346797753,1735296639914,-500.0,9.274e-05,2]
[346797755,1735296639924,-500.0,9.274e-05,2]
[346797757,1735296639933,-500.0,9.274e-05,2]
[346797759,1735296639943,-500.0,9.274e-05,2]
[346797761,1735296639953,-500.0,9.274e-05,2]
[346797779,1735296640111,-500.0,9.274e-05,2]
[346797781,1735296640122,-500.0,9.274e-05,2]
[346797783,1735296640131,-500.0,9.274e-05,2]
[346797785,1735296640141,-500.0,9.274e-05,2]
[346797787,1735296640150,-500.0,9.274e-05,2]
[346797789,1735296640160,-503.25,9.274e-05,2]
[346797791,1735296640169,-500.0,9.274e-05,2]
[346797793,1735296640179,-500.0,9.274e-05,2]
[346797795,1735296640188,-500.0,9.274e-05,2]
[346797798,1735296640200,-625.54502216,9.274e-05,2]
[346797799,1735296640209,-500.0,9.274e-05,2]
[346797801,1735296640219,-500.0,9.274e-05,2]
[346797803,1735296640229,-500.0,9.274e-05,2]
[346797805,1735296640238,-155.74078425,9.274e-05,2]
[346797809,1735296640249,-500.0,9.274e-05,2]
[346797812,1735296640259,-500.0,9.274e-05,2]
[346797814,1735296640271,-500.0,9.274e-05,2]
[346797817,1735296640283,-500.0,9.274e-05,2]
[346797821,1735296640296,-463.69764387,9.274e-05,2]
[346797824,1735296640308,-500.0,9.274e-05,2]
[346797827,1735296640317,-500.0,9.274e-05,2]
[346797829,1735296640326,-500.0,9.274e-05,2]
[346797832,1735296640336,-534.41,9.274e-05,2]
[346797835,1735296640346,-500.0,9.274e-05,2]
[346797838,1735296640355,-500.0,9.274e-05,2]
[346797841,1735296640368,-500.0,9.274e-05,2]
[346797844,1735296640378,-500.0,9.274e-05,2]
[346797847,1735296640388,-500.0,9.274e-05,2]
[346797849,1735296640398,-217.75393828,9.274e-05,2]
[346797851,1735296640408,-500.0,9.274e-05,2]
[346797853,1735296640420,-500.0,9.274e-05,2]
[346797855,1735296640436,-500.0,9.274e-05,2]
[346797857,1735296640445,-500.0,9.274e-05,2]
[346797859,1735296640455,-500.0,9.274e-05,2]
[346797861,1735296640464,-500.0,9.274e-05,2]
[346797863,1735296640474,-500.0,9.274e-05,2]
[346797865,1735296640483,-503.53902868,9.274e-05,2]
[346797867,1735296640492,-500.0,9.274e-05,2]
[346797869,1735296640503,-500.0,9.274e-05,2]